bitfinex-derivatives/quotes_BTCF0:USTF0_20250506
["timestamp","ask_amount","ask_price","bid_price","bid_amount"]
[1746534597210,0.03433069,93866.0,93865.0,0.82629479]
[1746534597410,0.00213069,93866.0,93865.0,0.82629479]
[1746534597615,0.00213069,93866.0,93865.0,0.94680235]
[1746534598620,0.00213069,93866.0,93865.0,1.22680235]
[1746534599823,0.0324,93874.0,93873.0,0.213107]
[1746534600014,0.0324,93874.0,93873.0,1.031147]
[1746534600724,0.0324,93874.0,93873.0,1.124447]
[1746534601323,0.0324,93874.0,93873.0,1.302447]
[1746534601710,0.001,93876.0,93875.0,0.2131025]
[1746534602017,0.001,93876.0,93875.0,0.6231025]
[1746534602223,0.001,93876.0,93875.0,0.8011025]
[1746534611222,0.001,93876.0,93875.0,0.6231025]
[1746534612628,0.0334,93876.0,93875.0,0.6231025]
[1746534616726,0.04611,93885.0,93884.0,0.2130821]
[1746534616916,0.04611,93885.0,93884.0,0.9738821]
[1746534617117,0.0015,93890.0,93889.0,0.2130707]
[1746534617328,0.0015,93890.0,93889.0,0.6702307]
[1746534617827,0.0015,93890.0,93889.0,0.7309307]
[1746534618027,0.04817,93898.0,93897.0,0.2130526]
[1746534618331,0.0322,93898.0,93897.0,0.9038526]
[1746534619026,0.0322,93898.0,93897.0,0.9369526]
[1746534619828,0.0322,93898.0,93897.0,0.94760632]
[1746534620330,0.0322,93898.0,93897.0,0.9369526]
[1746534621525,0.2452503,93898.0,93897.0,0.6908]
[1746534621725,0.2452503,93898.0,93897.0,0.9710126]
[1746534622729,0.2452503,93898.0,93897.0,0.9038526]
[1746534622921,0.0322,93898.0,93897.0,0.9710126]
[1746534623122,0.2102,93898.0,93897.0,0.9710126]
[1746534624129,0.4232503,93898.0,93897.0,0.9710126]
[1746534625132,0.2102,93898.0,93897.0,0.9710126]
[1746534625724,0.4232503,93898.0,93897.0,0.9710126]
[1746534626222,0.2102,93898.0,93897.0,0.9710126]
[1746534626423,0.4232503,93898.0,93897.0,0.9710126]
[1746534627128,0.2102,93898.0,93897.0,0.9710126]
[1746534627326,0.178,93898.0,93897.0,0.9710126]
[1746534627730,0.178,93898.0,93897.0,1.0348126]
[1746534628130,0.0319,93899.0,93897.0,1.0348126]
[1746534628131,0.0319,93899.0,93898.0,0.2130503]
[1746534628328,0.0319,93899.0,93898.0,0.6468503]
[1746534636835,0.0302,93904.0,93903.0,0.2130389]
[1746534637030,0.0302,93904.0,93903.0,0.6130389]
[1746534637240,0.0313,93906.0,93905.0,0.2130344]
[1746534637442,0.001,93906.0,93905.0,0.9238344]
[1746534638147,0.179,93906.0,93905.0,0.9563344]
[1746534639247,0.001,93906.0,93905.0,1.4563344]
[1746534639440,0.01597,93913.0,93905.0,1.349792]
[1746534639641,0.01597,93913.0,93912.0,0.5738185]
[1746534639833,0.0324,93920.0,93913.0,0.2130163]
[1746534640038,0.0324,93920.0,93919.0,0.2130026]
[1746534640235,0.0324,93920.0,93919.0,0.6030026]
[1746534640646,0.19652532,93925.0,93924.0,0.2129913]
[1746534640848,0.19652532,93925.0,93924.0,0.9837913]
[1746534641243,0.37452532,93925.0,93924.0,0.9837913]
[1746534641654,0.37452532,93925.0,93924.0,1.0153913]
[1746534642349,0.40602532,93925.0,93924.0,1.0153913]
[1746534642853,0.40602532,93925.0,93924.0,1.0480913]
[1746534643558,0.2439,93925.0,93924.0,1.0480913]
[1746534647656,0.2124,93925.0,93924.0,1.0480913]
[1746534650741,0.1795,93925.0,93924.0,1.0480913]
[1746534652747,0.1795,93925.0,93924.0,0.6380913]
[1746534653459,0.392489,93925.0,93924.0,0.3608]
[1746534653648,0.1795,93925.0,93924.0,0.5737913]
[1746534654356,0.2768,93925.0,93924.0,0.5737913]
[1746534655158,0.2114,93925.0,93924.0,0.5737913]
[1746534655348,0.2114,93925.0,93924.0,0.6051913]
[1746534655550,0.2114,93925.0,93924.0,0.6372913]
[1746534659656,0.01596,93931.0,93930.0,0.2129777]
[1746534659958,0.0305,93935.0,93931.0,0.0532436]
[1746534660158,0.2085,93935.0,93934.0,0.2129686]
[1746534660361,0.2085,93935.0,93934.0,0.2800486]
[1746534666967,0.178,93935.0,93934.0,0.2800486]
[1746534668566,0.2087,93935.0,93934.0,0.2800486]
[1746534670259,0.178,93935.0,93934.0,0.6408486]
[1746534671270,0.01596,93940.0,93935.0,0.2129664]
[1746534671472,0.01596,93940.0,93935.0,0.2789664]
[1746534671971,0.01596,93940.0,93939.0,0.2129573]
[1746534672265,0.16212532,93943.0,93942.0,0.2129505]
[1746534673066,0.16212532,93943.0,93942.0,0.2744505]
[1746534673956,0.16212532,93943.0,93942.0,0.7744505]
[1746534675472,0.2771414,93946.0,93945.0,0.2129437]
[1746534676068,0.4551414,93946.0,93945.0,0.2129437]
[1746534676267,0.2422,93946.0,93945.0,0.2129437]
[1746534677272,0.4551414,93946.0,93945.0,0.2799437]
[1746534677970,0.2422,93946.0,93945.0,0.2799437]
[1746534678764,0.4551414,93946.0,93945.0,0.2799437]
[1746534678964,0.2422,93946.0,93945.0,0.2799437]
[1746534683968,0.4551414,93946.0,93945.0,0.3123437]
[1746534684175,0.2422,93946.0,93945.0,0.3123437]
[1746534690470,0.2422,93946.0,93945.0,0.3443437]
[1746534692583,0.211,93946.0,93945.0,0.35508713]
[1746534695485,0.211,93946.0,93945.0,0.3443437]
[1746534702189,0.4239414,93946.0,93945.0,0.3443437]
[1746534702374,0.211,93946.0,93945.0,0.3443437]
[1746534702779,0.2431,93946.0,93945.0,0.3443437]
[1746534704285,0.4560414,93946.0,93945.0,0.3443437]
[1746534705785,0.2431,93946.0,93945.0,0.3443437]
[1746534705986,0.2431,93946.0,93945.0,0.2773437]
[1746534706175,0.2431,93946.0,93945.0,0.3442637]
[1746534709089,0.4560414,93946.0,93945.0,0.3442637]
[1746534709686,0.2431,93946.0,93945.0,0.3442637]
[1746534709892,0.4560414,93946.0,93945.0,0.3442637]
[1746534711097,0.4560414,93946.0,93944.0,0.0532365]
[1746534711098,0.212955,93940.0,93939.0,0.5737573]
[1746534711287,0.212955,93940.0,93939.0,0.3608]
[1746534711488,0.212955,93940.0,93939.0,0.5737573]
[1746534712199,0.422555,93940.0,93939.0,0.5737573]
[1746534712389,0.454155,93940.0,93939.0,0.5737573]
[1746534717997,0.454155,93940.0,93939.0,0.3608]
[1746534718299,0.2129936,93923.0,93922.0,0.3608]
[1746534718499,0.2129936,93923.0,93922.0,0.6407158]
[1746534718703,0.2129936,93923.0,93922.0,0.42772]
[1746534718893,0.2129936,93923.0,93922.0,0.6407158]
[1746534719092,0.4213936,93923.0,93922.0,0.6407158]
[1746534719895,0.4517936,93923.0,93922.0,0.6051958]
[1746534722298,0.4517936,93923.0,93922.0,0.3922]
[1746534722600,0.2130094,93916.0,93915.0,0.00159699]
[1746534722996,0.3194894,93916.0,93915.0,0.00159699]
[1746534723198,0.4974894,93916.0,93915.0,0.00159699]
[1746534723500,0.5300894,93916.0,93915.0,0.00159699]
[1746534730606,0.5800894,93916.0,93915.0,0.00159699]
[1746534730905,0.58221896,93916.0,93915.0,0.00159699]
[1746534734006,0.47573896,93916.0,93915.0,0.00159699]
[1746534743807,0.2130253,93909.0,93908.0,0.0631]
[1746534744008,0.5738253,93909.0,93908.0,0.0631]
[1746534744207,0.9083133,93909.0,93908.0,0.0322]
[1746534746908,0.9083133,93909.0,93907.0,0.00159732]
[1746534746909,0.2130276,93908.0,93907.0,0.00159732]
[1746534747215,0.2935276,93908.0,93907.0,0.00159732]
[1746534747611,0.4000156,93908.0,93907.0,0.00159732]
[1746534748115,0.5780156,93908.0,93907.0,0.00159732]
[1746534753410,0.58014534,93908.0,93907.0,0.00159732]
[1746534753609,0.58014534,93908.0,93907.0,0.03189732]
[1746534755415,1.30174534,93908.0,93907.0,0.03189732]
[1746534757017,1.19525734,93908.0,93907.0,0.03189732]
[1746534757321,1.30174534,93908.0,93907.0,0.03189732]
[1746534757508,0.58014534,93908.0,93907.0,0.03189732]
[1746534757707,1.30174534,93908.0,93907.0,0.03189732]
[1746534757908,1.30174534,93908.0,93907.0,0.06269732]
[1746534758813,1.27124534,93908.0,93907.0,0.06269732]
[1746534762120,1.16475734,93908.0,93907.0,0.06269732]
[1746534770728,1.19485734,93908.0,93907.0,0.06269732]
[1746534770926,1.16475734,93908.0,93907.0,0.06269732]
[1746534771232,0.21515734,93908.0,93907.0,0.06269732]
[1746534773326,0.00212974,93908.0,93907.0,0.27572722]
[1746534773529,0.00212974,93908.0,93907.0,0.99301522]
[1746534773721,0.01597,93912.0,93911.0,0.2130208]
[1746534773929,0.2289885,93912.0,93911.0,0.2130208]
[1746534774126,0.48295712,93914.0,93913.0,0.2130163]
[1746534774931,0.42970342,93914.0,93913.0,0.2130163]
[1746534775134,0.42970152,93914.0,93913.0,0.2130163]
[1746534775431,0.21668752,93914.0,93913.0,0.2130163]
[1746534775631,0.11688752,93914.0,93913.0,0.56949629]
[1746534775834,0.06698752,93914.0,93913.0,0.56949629]
[1746534776035,1e-08,93914.0,93913.0,0.56949629]
[1746534776235,0.2129696,93934.0,93933.0,0.2129709]
[1746534776635,0.21703058,93935.0,93934.0,0.2129686]
[1746534776928,0.42999698,93935.0,93934.0,0.2129686]
[1746534777740,0.21703058,93935.0,93934.0,0.2129686]
[1746534778121,0.21703058,93935.0,93934.0,0.3909686]
[1746534779431,0.21703058,93935.0,93934.0,0.5633246]
[1746534779729,0.21703058,93935.0,93934.0,0.8133246]
[1746534779931,0.00511,93944.0,93943.0,0.2129482]
[1746534780136,0.00511,93944.0,93943.0,0.2797082]
[1746534780439,0.2129392,93947.0,93946.0,0.2129392]
[1746534780639,0.2129392,93947.0,93946.0,0.3069392]
[1746534780830,0.2129392,93947.0,93946.0,0.4133832]
[1746534781027,0.2129392,93947.0,93946.0,0.3069392]
[1746534781337,0.2129392,93947.0,93946.0,0.4849392]
[1746534783139,0.2129392,93947.0,93946.0,0.3069392]
[1746534785139,0.2129374,93948.0,93947.0,0.2129369]
[1746534785334,0.2129374,93948.0,93947.0,0.2749369]
[1746534786737,0.0532324,93952.0,93951.0,0.2129278]
[1746534786738,0.212928,93952.0,93951.0,0.2129278]
[1746534787634,0.212928,93952.0,93951.0,0.2447278]
[1746534788437,0.212928,93952.0,93951.0,0.6047278]
[1746534789436,0.4140285,93958.0,93954.0,0.0532306]
[1746534789639,0.2129185,93957.0,93956.0,0.2129165]
[1746534789938,0.2129185,93957.0,93956.0,0.6396765]
[1746534791432,0.2452185,93957.0,93956.0,0.6396765]
[1746534791933,0.2777185,93957.0,93956.0,0.42676]
[1746534792132,0.4557185,93957.0,93956.0,0.6396788]
[1746534793445,0.178,93957.0,93956.0,0.6396788]
[1746534793743,0.178,93957.0,93956.0,1.0004788]
[1746534793945,0.178,93957.0,93956.0,1.1069108]
[1746534794139,0.0015,93960.0,93959.0,0.212912]
[1746534794346,0.0015,93960.0,93959.0,0.552912]
[1746534797038,0.2144097,93960.0,93959.0,0.552912]
[1746534797437,0.0015,93960.0,93959.0,0.552912]
[1746534797635,0.2144097,93960.0,93959.0,0.552912]
[1746534797841,0.0015,93960.0,93959.0,0.552912]
[1746534799243,0.0333,93960.0,93959.0,0.552912]
[1746534801240,0.0015,93960.0,93959.0,0.65934]
[1746534801945,0.0319,93960.0,93959.0,0.65934]
[1746534802646,0.0319,93960.0,93959.0,0.552912]
[1746534802847,0.2448097,93960.0,93959.0,0.552912]
[1746534803347,0.2099,93960.0,93959.0,0.552912]
[1746534809154,0.0015,93960.0,93959.0,0.69014]
[1746534810149,0.0015,93960.0,93959.0,2.19014]
[1746534815052,0.0015,93960.0,93959.0,2.083712]
[1746534815958,0.0015,93960.0,93959.0,2.444512]
[1746534816955,0.0015,93960.0,93959.0,2.944512]
[1746534817460,0.0327,93965.0,93964.0,0.2129006]
[1746534817756,0.0327,93965.0,93964.0,0.6029006]
[1746534818356,0.0327,93965.0,93964.0,0.6660006]
[1746534818763,0.001,93966.0,93965.0,0.2128984]
[1746534818957,0.001,93966.0,93965.0,0.6277984]
[1746534819261,0.001,93966.0,93965.0,0.7342224]
[1746534821162,0.001,93966.0,93965.0,0.6277984]
[1746534821490,0.00511,93971.0,93970.0,0.212887]
[1746534821764,0.0323,93987.0,93986.0,0.2128508]
[1746534821964,0.3086485,93987.0,93986.0,0.6294908]
[1746534822150,0.4866485,93987.0,93986.0,0.6294908]
[1746534822356,0.4866485,93987.0,93986.0,2.1294908]
[1746534822550,0.2738,93987.0,93986.0,2.0628508]
[1746534822756,0.2738,93987.0,93986.0,2.1294908]
[1746534822757,0.178,93987.0,93986.0,2.1294908]
[1746534822958,0.178,93987.0,93986.0,2.1950908]
[1746534823158,0.12195616,93988.0,93987.0,0.2128485]
[1746534823360,0.0306,93994.0,93993.0,0.2128349]
[1746534823567,0.0306,93994.0,93993.0,0.94173725]
[1746534823756,0.19314112,93994.0,93993.0,0.94173725]
[1746534824161,0.19314112,93994.0,93993.0,1.00493725]
[1746534824364,0.19314112,93994.0,93993.0,1.50493725]
[1746534824561,0.25814112,93994.0,93993.0,1.50493725]
[1746534828675,0.0306,93994.0,93993.0,1.50493725]
[1746534828864,0.0015,93995.0,93994.0,0.2128327]
[1746534829054,0.0015,93995.0,93994.0,0.6228327]
[1746534829260,0.0015,93995.0,93994.0,2.1852327]
[1746534829566,1e-07,93996.0,93995.0,0.2128304]
[1746534829765,0.0319,94013.0,94012.0,0.2127919]
[1746534829970,0.0319,94013.0,94012.0,1.0001519]
[1746534830165,0.2099,94013.0,94012.0,2.5001519]
[1746534831059,0.178,94013.0,94012.0,2.5001519]
[1746534831264,0.001,94026.0,94019.0,0.2127761]
[1746534831466,0.001,94026.0,94025.0,0.2127625]
[1746534831768,0.001,94026.0,94025.0,1.0301225]
[1746534831968,0.0015,94030.0,94029.0,0.2127535]
[1746534832163,0.1795,94030.0,94029.0,0.6793135]
[1746534832563,0.3922512,94030.0,94029.0,0.4]
[1746534832762,0.7530512,94030.0,94029.0,0.4]
[1746534832960,0.7530512,94030.0,94029.0,0.46656]
[1746534836367,0.7846512,94030.0,94029.0,0.4]
[1746534836570,0.2127603,94026.0,94025.0,0.06656]
[1746534836877,0.3191696,94019.0,94018.0,0.2127729]
[1746534837064,0.3191696,94019.0,94018.0,0.06656]
[1746534837270,0.4971696,94019.0,94018.0,0.2793384]
[1746534837670,0.4439751,94019.0,94018.0,0.2793384]
[1746534840583,0.4439751,94019.0,94018.0,0.06656]
[1746534840774,0.4439751,94019.0,94018.0,0.2793384]
[1746534841079,0.178,94019.0,94018.0,0.2793384]
[1746534843680,0.2084,94019.0,94018.0,0.2793384]
[1746534847679,0.178,94019.0,94018.0,0.2793384]
[1746534847983,0.39097651,94019.0,94018.0,0.06656]
[1746534848186,0.39097651,94019.0,94018.0,0.2793384]
[1746534848880,0.2127897,94013.0,93993.0,0.00969816]
[1746534849078,0.21281,94004.0,94003.0,0.5736041]
[1746534849279,0.21281,94004.0,94003.0,0.6401641]
[1746534850073,0.45321,94004.0,94003.0,0.6401641]
[1746534850382,0.2404,94004.0,94003.0,0.6401641]
[1746534851282,0.45321,94004.0,94003.0,0.6401641]
[1746534851585,0.45321,94004.0,93995.0,0.21388978]
[1746534851586,0.2128282,93996.0,93995.0,0.21388978]
[1746534851785,0.2128282,93996.0,93995.0,0.00106388]
[1746534851978,0.2128282,93996.0,93995.0,0.28045428]
[1746534852284,0.3908282,93996.0,93995.0,0.28045428]
[1746534852475,0.4524282,93996.0,93995.0,0.00106388]
[1746534852679,0.9196162,93996.0,93995.0,0.00106388]
[1746534852879,0.2128327,93994.0,93993.0,0.00159581]
[1746534853078,0.3908327,93994.0,93993.0,0.00159581]
[1746534853277,0.4972247,93994.0,93993.0,0.00159581]
[1746534853478,0.7291247,93994.0,93993.0,0.00159581]
[1746534853679,0.2128667,93979.0,93978.0,0.06656]
[1746534854087,0.3908667,93979.0,93978.0,0.06656]
[1746534854684,0.2128689,93978.0,93977.0,0.00159613]
[1746534854888,0.3808769,93978.0,93977.0,0.00159613]
[1746534855087,0.5588769,93978.0,93977.0,0.00159613]
[1746534857177,0.7291769,93978.0,93977.0,0.00159613]
[1746534857988,0.2128961,93966.0,93965.0,0.00106422]
[1746534858181,0.7516961,93966.0,93965.0,0.00106422]
[1746534858775,0.8147961,93966.0,93965.0,0.00106422]
[1746534859584,0.8147961,93966.0,93965.0,0.21396262]
[1746534860889,0.178,93966.0,93965.0,0.57476262]
[1746534861092,0.178,93966.0,93965.0,1.01208262]
[1746534861480,0.178,93966.0,93965.0,1.04368262]
[1746534861682,0.178,93966.0,93965.0,2.54368262]
[1746534862183,0.2006,93988.0,93987.0,0.2128485]
[1746534862384,0.3608,93993.0,93992.0,0.2128372]
[1746534863092,0.3608,93993.0,93992.0,1.7128372]
[1746534863393,0.5388,93993.0,93992.0,1.7128372]
[1746534866787,0.5388,93993.0,93992.0,1.7445372]
[1746534869692,0.178,93993.0,93992.0,2.1053372]
[1746534870879,0.178,93993.0,93992.0,2.1718572]
[1746534874996,0.178,93993.0,93992.0,2.1053372]
[1746534875194,0.178,93993.0,93992.0,2.1718572]
[1746534875489,0.3908349,93993.0,93992.0,2.1718572]
[1746534875690,0.4553349,93993.0,93992.0,1.8608]
[1746534876388,0.4553349,93993.0,93992.0,0.3608]
[1746534876594,0.2128395,93991.0,93990.0,0.06652]
[1746534876796,0.2128395,93991.0,93990.0,1.56652]
[1746534877191,0.3908395,93991.0,93990.0,1.56652]
[1746534878091,0.2128531,93985.0,93984.0,0.0322]
[1746534878396,0.2128667,93979.0,93978.0,0.06652]
[1746534878597,0.2128667,93979.0,93978.0,1.56652]
[1746534878888,0.2128667,93979.0,93978.0,1.59862]
[1746534879095,0.3908667,93979.0,93978.0,1.59862]
[1746534879482,0.4556667,93979.0,93978.0,1.59862]
[1746534881503,0.4556667,93979.0,93978.0,0.09862]
[1746534881691,0.4556667,93979.0,93978.0,0.06652]
[1746534883600,0.2128712,93977.0,93976.0,0.0332]
[1746534884090,0.3908712,93977.0,93976.0,0.0332]
[1746534884505,0.3908712,93977.0,93976.0,0.2460735]
[1746534891003,0.3908712,93977.0,93976.0,0.0332]
[1746534891195,0.3908712,93977.0,93976.0,0.2460735]
[1746534891398,0.3908712,93977.0,93976.0,0.0332]
[1746534891798,0.3908712,93977.0,93976.0,0.2460735]
[1746534893900,0.3908712,93977.0,93976.0,0.0332]
[1746534894404,0.3908712,93977.0,93976.0,0.2460735]
[1746534894601,0.3908712,93977.0,93976.0,0.0332]
[1746534894797,0.3908712,93977.0,93976.0,0.2460735]
[1746534895804,0.178,93977.0,93976.0,0.2460735]
[1746534896609,0.178,93977.0,93976.0,0.2784735]
[1746534899810,0.3908712,93977.0,93976.0,0.2784735]
[1746534901311,0.178,93977.0,93976.0,0.2784735]
[1746534901809,0.3908712,93977.0,93976.0,0.2784735]
[1746534902804,0.178,93977.0,93976.0,0.2784735]
[1746534903396,0.1456831,93977.0,93976.0,0.38488149]
[1746534903601,0.16177267,93997.0,93994.0,0.2128327]
[1746534903809,0.16177267,93997.0,93994.0,2.1401527]
[1746534904017,0.2143304,93995.0,93994.0,2.1401527]
[1746534904312,0.1795,93995.0,93994.0,2.1401527]
[1746534904504,0.1795,93995.0,93994.0,2.2049527]
[1746534906113,0.3923304,93995.0,93994.0,2.2049527]
[1746534907214,0.68267904,93995.0,93994.0,2.2049527]
[1746534907714,1.04347904,93995.0,93994.0,1.8441527]
[1746534908014,1.04347904,93995.0,93994.0,1.5648]
[1746534908214,1.04347904,93995.0,93994.0,1.5317]
[1746534908604,1.10427904,93995.0,93994.0,1.5317]
[1746534908804,1.10427904,93995.0,93994.0,1.7445327]
[1746534909214,0.99407157,93995.0,93994.0,1.7445327]
[1746534909514,0.89728869,93995.0,93994.0,1.7445327]
[1746534910002,0.89728869,93995.0,93994.0,1.5317]
[1746534910203,0.89728869,93995.0,93994.0,1.7445327]
[1746534911113,0.89728869,93995.0,93994.0,1.5317]
[1746534911310,0.89728869,93995.0,93994.0,1.7445327]
[1746534911523,0.89728869,93995.0,93994.0,1.5317]
[1746534912106,0.8139304,93995.0,93994.0,1.5317]
[1746534913115,0.8139304,93995.0,93994.0,1.7445327]
[1746534913513,0.8139304,93995.0,93994.0,1.5317]
[1746534914014,0.8139304,93995.0,93994.0,1.7445327]
[1746534914207,0.8139304,93995.0,93994.0,1.5317]
[1746534915207,0.8139304,93995.0,93994.0,1.5628]
[1746534917014,0.2128667,93979.0,93958.0,0.3608]
[1746534917220,0.2128893,93969.0,93968.0,0.0304]
[1746534917513,0.2128893,93969.0,93968.0,0.2432916]
[1746534917711,0.2438893,93969.0,93968.0,0.2432916]
[1746534918111,0.4218893,93969.0,93968.0,0.2432916]
[1746534918309,0.2128938,93967.0,93966.0,0.09842]
[1746534918517,0.2128938,93967.0,93966.0,0.3113161]
[1746534918710,0.475114,93969.0,93968.0,0.2128916]
[1746534918909,0.505914,93969.0,93968.0,0.2128916]
[1746534919110,0.505914,93969.0,93968.0,0.2794116]
[1746534919316,0.4526912,93969.0,93968.0,0.2794116]
[1746534920717,0.4526912,93969.0,93968.0,0.2128916]
[1746534920918,0.2398,93969.0,93968.0,0.2793716]
[1746534921518,0.4526893,93969.0,93968.0,0.2793716]
[1746534922320,0.4526893,93969.0,93968.0,0.2128916]
[1746534922519,0.4526893,93969.0,93968.0,0.2793716]
[1746534922720,0.4526893,93969.0,93968.0,0.3102716]
[1746534923522,0.2398,93969.0,93968.0,0.3102716]
[1746534923712,0.4526893,93969.0,93968.0,0.3102716]
[1746534923906,0.2398,93969.0,93968.0,0.3102716]
[1746534924111,0.4526893,93969.0,93968.0,0.3102716]
[1746534926124,0.4526893,93969.0,93968.0,0.09738]
[1746534926312,0.4526893,93969.0,93968.0,0.3102716]
[1746534928623,0.4526893,93969.0,93968.0,0.06648]
[1746534929420,0.4526893,93969.0,93968.0,0.09828]
[1746534929732,0.4526893,93969.0,93959.0,0.05482426]
[1746534929733,0.2129097,93960.0,93959.0,0.00159636]
[1746534929915,0.5737097,93960.0,93959.0,0.00159636]
[1746534930318,0.7517097,93960.0,93959.0,0.00159636]
[1746534933426,0.5388,93960.0,93959.0,0.00159636]
[1746534933623,0.178,93960.0,93959.0,0.21450836]
[1746534933818,0.178,93960.0,93959.0,1.78098836]
[1746534934016,0.1703,93969.0,93968.0,0.2128916]
[1746534934720,0.3831893,93969.0,93968.0,0.2739916]
[1746534935121,0.3908893,93969.0,93968.0,0.2739916]
[1746534935723,0.3908893,93969.0,93968.0,0.0611]
[1746534936121,0.3908893,93969.0,93968.0,0.0303]
[1746534936321,0.4535893,93969.0,93968.0,0.0303]
[1746534937718,0.2128916,93968.0,93967.0,0.06648]
[1746534938124,0.0532268,93962.0,93950.0,0.0532329]
[1746534938326,0.5737097,93960.0,93958.0,0.0333]
[1746534938721,0.6357097,93960.0,93958.0,0.0333]
[1746534939122,0.8137097,93960.0,93958.0,0.0333]
[1746534940032,0.8137097,93960.0,93959.0,0.21450836]
[1746534940233,0.8137097,93960.0,93959.0,0.00159636]
[1746534940427,0.5388,93960.0,93959.0,0.21450836]
[1746534940629,0.5388,93960.0,93959.0,0.41663636]
[1746534940829,0.178,93960.0,93959.0,0.41663636]
[1746534942131,0.178,93960.0,93959.0,1.81020836]
[1746534943629,0.178,93960.0,93959.0,0.31020836]
[1746534945336,0.3909097,93960.0,93959.0,0.31020836]
[1746534945540,0.3909097,93960.0,93959.0,0.06699636]
[1746534945836,0.3909097,93960.0,93959.0,0.03489636]
[1746534946237,0.4544097,93960.0,93959.0,0.03489636]
[1746534946628,0.4544097,93960.0,93959.0,0.00159636]
[1746534947435,0.4544097,93960.0,93959.0,0.03189636]
[1746534947732,0.4544097,93960.0,93959.0,0.24480836]
[1746534949049,0.2415,93960.0,93959.0,0.24480836]
[1746534949339,0.178,93960.0,93959.0,0.24480836]
[1746534950130,0.2128931,93968.0,93967.0,0.2128938]
[1746534951141,0.3908931,93968.0,93967.0,0.2128938]
[1746534952739,0.4210931,93968.0,93967.0,0.2128938]
[1746534955137,0.2128961,93966.0,93965.0,0.3326009]
[1746534955334,0.5736961,93966.0,93965.0,0.2793769]
[1746534955541,0.5736961,93966.0,93965.0,0.06648]
[1746534955735,0.2129097,93960.0,93959.0,0.00159636]
[1746534956043,0.2129097,93960.0,93959.0,0.28098836]
[1746534956245,0.3909097,93960.0,93959.0,0.28098836]
[1746534957246,0.4534097,93960.0,93959.0,0.28098836]
[1746534958142,0.4534097,93960.0,93959.0,0.06807636]
[1746534958341,0.4534097,93960.0,93959.0,0.00159636]
[1746534959742,0.4534097,93960.0,93959.0,0.21450836]
[1746534961245,0.2083,93960.0,93959.0,0.21450836]
[1746534961546,0.178,93960.0,93959.0,0.21450836]
[1746534962151,0.2128966,93966.0,93965.0,0.2128984]
[1746534963350,0.7516966,93966.0,93965.0,0.2128984]
[1746534963542,0.2129097,93960.0,93959.0,0.21450516]
[1746534963745,0.2129097,93960.0,93959.0,0.31098836]
[1746534964248,0.3909097,93960.0,93959.0,1.59807636]
[1746534964447,0.4234097,93960.0,93959.0,0.09807636]
[1746534964753,0.4234097,93960.0,93959.0,0.31098836]
[1746534965554,0.3909097,93960.0,93959.0,0.31098836]
[1746534966849,0.178,93960.0,93959.0,0.31098836]
[1746534967250,0.3831908,93969.0,93968.0,0.2128916]
[1746534967446,0.1703,93969.0,93968.0,0.2128916]
[1746534968142,0.4140192,93975.0,93974.0,0.212878]
[1746534968143,0.3608,93975.0,93974.0,0.212878]
[1746534968948,0.3608,93975.0,93974.0,0.275678]
[1746534969151,0.5388,93975.0,93974.0,0.275678]
[1746534970052,0.178,93975.0,93974.0,0.28611702]
[1746534970261,0.2028,93985.0,93984.0,0.2128553]
[1746534970556,0.0325,93985.0,93984.0,0.2128553]
[1746534970747,0.2128493,93987.0,93985.0,0.2128531]
[1746534970948,0.0325,93988.0,93985.0,0.2793331]
[1746534971251,0.5388,93986.0,93985.0,0.2793331]
[1746534971446,0.7516508,93986.0,93985.0,0.2793331]
[1746534971644,0.5388,93986.0,93985.0,0.2793331]
[1746534972852,0.178,93986.0,93985.0,0.2793331]
[1746534973046,0.053204,94002.0,93985.0,0.2793331]
[1746534973047,0.0304,93994.0,93985.0,0.2793331]
[1746534973252,0.0304,93994.0,93993.0,0.2128349]
[1746534974057,0.2084,93994.0,93993.0,0.2783349]
[1746534974863,0.178,93994.0,93993.0,0.2783349]
[1746534975164,0.0015,93995.0,93994.0,0.2128327]
[1746534975663,0.0015,93995.0,93994.0,0.2738327]
[1746534976966,0.0343,93995.0,93994.0,0.2738327]
[1746534978167,0.4251304,93995.0,93994.0,0.2738327]
[1746534979265,0.2123,93995.0,93994.0,0.2738327]
[1746534980062,0.4251304,93995.0,93994.0,0.2738327]
[1746534980866,0.2123,93995.0,93994.0,0.2738327]
[1746534981568,0.4251304,93995.0,93994.0,0.2738327]
[1746534982466,0.2123,93995.0,93994.0,0.2738327]
[1746534982864,0.2123,93995.0,93994.0,0.3404327]
[1746534984669,0.1795,93995.0,93994.0,0.3404327]
[1746534986466,0.2113,93995.0,93994.0,0.3404327]
[1746534988867,0.1795,93995.0,93994.0,0.3404327]
[1746534989464,0.1795,93995.0,93994.0,0.1276]
[1746534989465,0.4254304,93995.0,93994.0,0.1276]
[1746534989667,0.4254304,93995.0,93994.0,0.3103327]
[1746534989870,0.4556304,93995.0,93994.0,0.3103327]
[1746534990575,0.4556304,93995.0,93994.0,0.0666]
[1746534990762,0.4556304,93995.0,93994.0,0.2794327]
[1746534994483,0.2428,93995.0,93994.0,0.2794327]
[1746534994680,0.2428,93995.0,93994.0,0.3106327]
[1746534996176,0.2126,93995.0,93994.0,0.3106327]
[1746534998777,0.21276003,93995.0,93994.0,0.3106327]
[1746535003476,0.17966003,93995.0,93994.0,0.3106327]
[1746535005779,0.21286003,93995.0,93994.0,0.3106327]
[1746535006381,0.17966003,93995.0,93994.0,0.3106327]
[1746535007181,0.17966003,93995.0,93994.0,1.8106327]
[1746535009271,0.17966003,93995.0,93994.0,0.2794327]
[1746535009481,0.21126003,93995.0,93994.0,0.3119327]
[1746535009871,0.24356003,93995.0,93994.0,1.8119327]
[1746535010375,0.45639043,93995.0,93994.0,1.8119327]
[1746535010581,0.24356003,93995.0,93994.0,1.8119327]
[1746535012780,0.45639043,93995.0,93994.0,1.7794327]
[1746535013783,0.45639043,93995.0,93994.0,1.7793527]
[1746535014283,0.24356003,93995.0,93994.0,1.7793527]
[1746535018679,0.24356003,93995.0,93994.0,1.7128327]
[1746535018883,0.24356003,93995.0,93994.0,1.7793527]
[1746535019488,0.2128485,93987.0,93986.0,0.2128485]
[1746535019686,0.2128485,93987.0,93986.0,0.3107685]
[1746535019983,0.3112447,93989.0,93988.0,0.2128463]
[1746535020175,0.4572447,93989.0,93988.0,0.2128463]
[1746535020675,0.4572447,93989.0,93988.0,0.2793663]
[1746535020877,0.2444,93989.0,93988.0,0.2793663]
[1746535021480,0.2444,93989.0,93988.0,0.3113663]
[1746535023579,0.457244,93989.0,93988.0,0.2793663]
[1746535023988,0.2444,93989.0,93988.0,0.2793663]